bitfinex/quotes_SOLUSD_20250728
["timestamp","ask_amount","ask_price","bid_price","bid_amount"]
[1753734613024,0.68,183.29,183.25,12.62402768]
[1753734613357,0.68,183.28,183.24,41.52]
[1753734613523,0.03,183.32,183.27,12.62402768]
[1753734613723,12.65402768,183.32,183.28,41.48]
[1753734613916,12.62402768,183.3,183.28,41.48]
[1753734614129,13.84946239,183.29,183.27,41.48]
[1753734614459,13.30402768,183.28,183.27,41.48]
[1753734615071,13.30402768,183.28,183.23,12.62402768]
[1753734615229,0.54543471,183.27,183.26,41.46]
[1753734615419,13.84946239,183.27,183.22,41.44]
[1753734615622,12.62402768,183.26,183.22,41.44]
[1753734615856,12.62402768,183.24,183.22,41.46]
[1753734616028,13.30402768,183.24,183.22,41.46]
[1753734616228,12.62402768,183.26,183.22,41.46]
[1753734616466,13.16946239,183.25,183.22,41.46]
[1753734616758,0.54543471,183.25,183.22,41.46]
[1753734616962,12.62402768,183.28,183.22,54.08402768]
[1753734617173,1.22543471,183.29,183.24,12.62402768]
[1753734617347,13.84946239,183.29,183.25,41.44]
[1753734617856,0.68,183.28,183.25,41.44]
[1753734618059,0.54543471,183.27,183.25,41.44]
[1753734618241,13.16946239,183.27,183.25,41.4]
[1753734618562,0.68,183.26,183.25,41.4]
[1753734618742,6.6809851,183.3,183.25,41.4]
[1753734619101,13.84946239,183.3,183.25,54.02402768]
[1753734619233,19.30506682,183.3,183.25,41.4]
[1753734619434,12.62402768,183.26,183.21,12.62402768]
[1753734619638,6.13601365,183.29,183.22,41.38]
[1753734619639,13.30402768,183.25,183.22,41.38]
[1753734620167,0.68,183.25,183.22,41.38]
[1753734620338,1.22543471,183.25,183.22,41.38]
[1753734620540,0.54543471,183.25,183.22,41.38]
[1753734620844,0.54543471,183.26,183.22,54.00402768]
[1753734621059,0.54543471,183.28,183.23,12.62402768]
[1753734621579,161.62402768,183.29,183.23,12.62402768]
[1753734621734,161.62402768,183.29,183.24,12.62402768]
[1753734622057,161.62402768,183.29,183.25,41.34]
[1753734622269,0.54543471,183.28,183.25,41.34]
[1753734622434,12.62402768,183.26,183.18,14.28082768]
[1753734622756,12.62402768,183.26,183.16,6.3457]
[1753734622757,12.62402768,183.19,183.16,41.32]
[1753734622971,13.16946239,183.18,183.16,41.32]
[1753734623186,0.68,183.19,183.16,41.32]
[1753734623477,12.62402768,183.19,183.16,41.32]
[1753734623667,12.62402768,183.17,183.11,6.4612]
[1753734623864,0.54543471,183.16,183.12,41.32]
[1753734624041,1.22543471,183.18,183.12,53.94402768]
[1753734624248,13.84946239,183.18,183.12,53.94402768]
[1753734624451,0.54543471,183.19,183.14,12.62402768]
[1753734624683,149.0,183.21,183.16,12.62402768]
[1753734624977,149.0,183.21,183.18,12.62402768]
[1753734625161,149.0,183.21,183.2,12.62402768]
[1753734625373,12.62402768,183.26,183.2,12.62402768]
[1753734625564,13.16946239,183.27,183.21,53.94402768]
[1753734625883,13.16946239,183.29,183.24,12.62402768]
[1753734626085,149.0,183.3,183.25,53.94402768]
[1753734626244,161.62402768,183.3,183.25,53.94402768]
[1753734626442,12.62402768,183.26,183.23,41.3]
[1753734626773,17.82818127,183.25,183.23,41.3]
[1753734627072,12.62402768,183.27,183.23,41.3]
[1753734627378,150.22543471,183.29,183.24,12.62402768]
[1753734627666,162.30402768,183.29,183.23,53.92402768]
[1753734627865,149.68,183.29,183.24,12.62402768]
[1753734628354,167.75991965,183.29,183.24,12.62402768]
[1753734628756,162.30402768,183.29,183.23,53.92402768]
[1753734628950,161.62402768,183.29,183.24,41.28]
[1753734629159,162.30402768,183.29,183.24,41.28]
[1753734629659,5.4564304,183.27,183.19,1.6522]
[1753734629851,18.08045808,183.27,183.22,12.62402768]
[1753734630053,0.68,183.27,183.22,12.62402768]
[1753734630380,149.0,183.29,183.19,1.6522]
[1753734630381,149.0,183.29,183.25,12.62402768]
[1753734630543,149.0,183.29,183.26,41.24]
[1753734630747,0.03,183.32,183.28,12.62402768]
[1753734630946,0.03,183.32,183.29,12.62402768]
[1753734631183,0.03,183.32,183.3,41.24]
[1753734631544,0.71,183.31,183.27,12.62402768]
[1753734631746,12.62402768,183.29,183.27,41.24]
[1753734631977,13.16946239,183.28,183.22,12.62402768]
[1753734632271,12.62402768,183.27,183.23,41.22]
[1753734632478,1.25543471,183.28,183.23,53.84402768]
[1753734632650,13.16946239,183.28,183.23,53.84402768]
[1753734632856,0.71,183.31,183.25,12.62402768]
[1753734633167,12.62402768,183.29,183.23,54.56402768]
[1753734633375,12.62402768,183.28,183.23,53.84402768]
[1753734633876,18.07996931,183.29,183.23,53.84402768]
[1753734634173,1.25543471,183.31,183.24,12.62402768]
[1753734634362,12.62402768,183.29,183.24,12.62402768]
[1753734634955,12.62402768,183.29,183.23,41.22]
[1753734635276,13.16946239,183.31,183.25,12.62402768]
[1753734635456,0.03,183.32,183.29,12.62402768]
[1753734635664,0.03,183.32,183.29,53.78402768]
[1753734636175,0.03,183.32,183.29,41.16]
[1753734636369,0.03,183.32,183.29,53.78402768]
[1753734636587,0.03,183.32,183.3,41.14]
[1753734637152,0.03,183.32,183.31,12.62402768]
[1753734637353,0.03,183.32,183.31,13.34402768]
[1753734637548,0.03,183.32,183.31,12.62402768]
[1753734638790,0.03,183.32,183.3,42.7922]
[1753734638994,0.03,183.32,183.31,12.62402768]
[1753734639600,0.03,183.32,183.31,53.70402768]
[1753734640399,0.03,183.32,183.31,59.87926743]
[1753734640901,0.03,183.32,183.31,13.34402768]
[1753734641086,0.03,183.32,183.31,41.04]
[1753734641410,0.03,183.32,183.31,53.66402768]
[1753734642593,0.03,183.32,183.31,76.6239514]
[1753734643098,0.03,183.32,183.31,77.16947537]
[1753734643316,0.03,183.32,183.31,77.31163694]
[1753734643603,0.03,183.34,183.33,29.40871165]
[1753734643805,0.03,183.34,183.33,29.95417611]
[1753734644006,0.03,183.34,183.33,62.12882073]
[1753734644172,0.03,183.36,183.35,42.78468397]
[1753734644513,0.03,183.36,183.35,97.25843975]
[1753734644801,0.03,183.36,183.35,97.97843975]
[1753734645301,0.03,183.38,183.36,18.32938397]
[1753734645495,0.03,183.38,183.37,12.62402768]
[1753734645690,0.03,183.38,183.37,53.62402768]
[1753734645990,0.03,183.38,183.37,53.60402768]
[1753734646971,0.03,183.38,183.37,59.05748244]
[1753734647484,0.03,183.38,183.37,53.60402768]
[1753734647972,0.03,183.38,183.37,53.54402768]
[1753734650097,0.03,183.38,183.37,59.71748244]
[1753734650618,0.74,183.38,183.33,6.2559]
[1753734650905,0.74,183.38,183.34,53.50402768]
[1753734651070,0.71,183.37,183.34,53.50402768]
[1753734651778,0.71,183.37,183.35,12.62402768]
[1753734651978,0.71,183.37,183.36,40.88]
[1753734652173,6.16345476,183.37,183.36,40.88]
[1753734652784,0.71,183.37,183.36,40.88]
[1753734653228,5.48318751,183.38,183.36,40.88]
[1753734653503,0.74,183.38,183.36,40.88]
[1753734653680,5.48317698,183.38,183.36,40.88]
[1753734653883,0.71,183.37,183.36,40.88]
[1753734654303,0.71,183.37,183.36,40.82]
[1753734654476,0.71,183.37,183.33,18.87992768]
[1753734654678,0.71,183.36,183.34,40.82]
[1753734654887,0.74,183.38,183.34,53.44402768]
[1753734655084,5.4831648,183.38,183.34,40.82]
[1753734655300,0.71,183.37,183.34,40.82]
[1753734655914,0.71,183.36,183.31,1.5447]
[1753734656100,13.33402768,183.35,183.3,12.62402768]
[1753734656411,0.71,183.34,183.31,40.76]
[1753734657705,0.71,183.33,183.31,40.76]
[1753734658103,8.26039996,183.35,183.31,40.76]
[1753734658413,8.26039996,183.35,183.32,40.72]
[1753734658414,9.51583467,183.34,183.32,40.72]
[1753734658593,0.71,183.33,183.32,40.72]
[1753734658995,8.97039996,183.33,183.26,2.2814]
[1753734659214,0.54543471,183.32,183.27,48.96039996]
[1753734659410,8.80583467,183.32,183.27,8.26039996]
[1753734659602,0.54543471,183.32,183.31,0.06]
[1753734659798,149.0,183.37,183.31,0.06]
[1753734660117,1.25543471,183.36,183.32,40.7]
[1753734660420,0.71,183.35,183.32,40.7]
[1753734660719,0.03,183.38,183.33,1.26546446]
[1753734661031,8.26039996,183.34,183.31,0.06]
[1753734661190,8.26039996,183.32,183.31,0.06]
[1753734661591,8.96039996,183.32,183.31,0.06]
[1753734661816,8.26039996,183.34,183.31,0.06]
[1753734661996,8.80583467,183.36,183.31,8.32039996]
[1753734662192,9.50583467,183.36,183.31,8.32039996]
[1753734662389,149.0,183.37,183.34,8.26039996]
[1753734662605,149.0,183.37,183.35,40.78]
[1753734662914,0.03,183.38,183.35,49.04039996]
[1753734663120,0.03,183.38,183.36,8.26039996]
[1753734663419,0.03,183.38,183.35,49.04039996]
[1753734663739,0.03,183.38,183.37,8.26039996]
[1753734664025,0.03,183.38,183.37,9.82179996]
[1753734664194,0.03,183.38,183.37,10.48179996]
[1753734664395,0.03,183.38,183.37,15.93525472]
[1753734664597,0.2,183.45,183.38,0.28432314]
[1753734664843,0.2,183.45,183.44,8.26039996]
[1753734665012,0.2,183.45,183.44,49.04039996]
[1753734665600,0.2,183.45,183.44,49.70039996]
[1753734665812,0.2,183.45,183.44,56.16299996]
[1753734666017,0.2,183.45,183.44,72.94768393]
[1753734666220,0.03,183.46,183.45,0.28432314]
[1753734666526,0.03,183.46,183.45,57.44048365]
[1753734666702,5.0,183.5,183.49,18.34608397]
[1753734666898,5.0,183.5,183.49,68.57147275]
[1753734667422,0.03,183.57,183.53,16.78468397]
[1753734667633,0.03,183.57,183.56,31.50768393]
[1753734667923,0.7,183.67,183.59,26.0]
[1753734668125,4.00143987,183.66,183.62,8.26039996]
[1753734668332,0.7,183.66,183.63,49.02039996]
[1753734668529,0.7,183.66,183.64,40.76]
[1753734668731,0.7,183.65,183.64,40.76]
[1753734669036,1.24543471,183.68,183.64,40.76]
[1753734669207,0.7,183.67,183.64,40.76]
[1753734669412,0.7,183.66,183.64,40.76]
[1753734670008,0.7,183.66,183.59,26.54469197]
[1753734670009,0.7,183.65,183.62,12.58219187]
[1753734670224,0.7,183.64,183.62,12.58219187]
[1753734670597,0.7,183.64,183.63,40.7]
[1753734670820,0.7,183.64,183.62,12.58219187]
[1753734671021,0.7,183.63,183.61,12.58219187]
[1753734671341,0.7,183.67,183.63,40.7]
[1753734671502,0.7,183.67,183.64,12.58219187]
[1753734672212,13.28219187,183.66,183.64,40.68]
[1753734672528,0.7,183.66,183.65,12.58219187]
[1753734672733,0.54543471,183.7,183.65,12.58219187]
[1753734672928,0.7,183.71,183.67,12.58219187]
[1753734673111,6.14341873,183.71,183.68,40.64]
[1753734673304,0.7,183.7,183.68,40.64]
[1753734673502,0.7,183.7,183.68,40.66]
[1753734674527,0.7,183.69,183.62,16.78468397]
[1753734674726,0.7,183.69,183.65,12.58219187]
[1753734674918,0.7,183.69,183.63,0.54457332]
[1753734675123,0.54543471,183.72,183.66,12.58219187]
[1753734675324,19.27070418,183.72,183.67,53.20219187]
[1753734675543,0.7,183.71,183.67,53.20219187]
[1753734675745,0.7,183.7,183.67,40.62]
[1753734676133,0.7,183.69,183.67,40.62]
[1753734676431,0.7,183.69,183.66,12.58219187]
[1753734676658,0.7,183.68,183.67,40.58]
[1753734676819,13.28219187,183.68,183.59,0.54469197]
[1753734677016,12.58219187,183.64,183.61,40.58]
[1753734677249,13.28219187,183.64,183.61,40.58]
[1753734677448,0.7,183.64,183.61,40.58]
[1753734677630,5.44369481,183.7,183.63,12.58219187]
[1753734677942,1.24543471,183.72,183.61,40.58]
[1753734677943,0.7,183.72,183.68,12.58219187]
[1753734678144,0.54543471,183.73,183.68,53.22219187]
[1753734678447,6.688219,183.73,183.68,40.64]
[1753734678647,6.688219,183.73,183.69,12.58219187]
[1753734678845,0.7,183.72,183.69,12.58219187]
[1753734679035,0.7,183.72,183.68,53.22219187]
[1753734679629,0.7,183.72,183.68,40.64]
[1753734680060,12.58219187,183.69,183.56,6.4626]
[1753734680348,12.58219187,183.63,183.58,12.58219187]
[1753734680550,12.58219187,183.67,183.62,12.58219187]
[1753734680731,18.72648006,183.68,183.63,12.58219187]
[1753734681130,12.58219187,183.67,183.62,53.24219187]
[1753734681326,12.58219187,183.64,183.62,40.66]
[1753734681538,12.58219187,183.63,183.58,12.58219187]
[1753734681729,12.58219187,183.61,183.57,40.64]
[1753734682147,13.28219187,183.61,183.57,40.64]
[1753734682348,12.58219187,183.62,183.57,40.64]
[1753734683656,12.58219187,183.6,183.57,40.64]
[1753734684037,12.58219187,183.59,183.57,40.64]
[1753734684244,12.58219187,183.61,183.57,40.64]
[1753734684757,12.58219187,183.62,183.57,40.64]
[1753734684958,12.58219187,183.61,183.57,41.3]
[1753734685136,12.58219187,183.6,183.57,40.64]
[1753734685533,12.58219187,183.62,183.57,53.22219187]
[1753734685762,12.58219187,183.64,183.59,12.58219187]
[1753734686065,13.28219187,183.63,183.57,53.22219187]
[1753734686246,12.58219187,183.62,183.57,53.22219187]
[1753734686443,0.7,183.63,183.57,53.22219187]
[1753734686646,12.58219187,183.63,183.58,12.58219187]
[1753734687234,18.02799086,183.63,183.58,12.58219187]
[1753734687443,12.58219187,183.62,183.57,40.64]
[1753734687664,12.58219187,183.62,183.57,53.88219187]
[1753734688736,8.23605922,183.62,183.57,49.53605922]
[1753734689259,8.23605922,183.59,183.55,1.6605]
[1753734689462,8.23605922,183.59,183.56,40.54]
[1753734689959,19.06013215,183.63,183.56,40.54]
[1753734689960,8.23605922,183.57,183.56,40.54]
[1753734690169,8.93605922,183.57,183.56,40.54]
[1753734690347,8.93605922,183.57,183.53,40.58]
[1753734690547,8.23605922,183.56,183.53,40.58]
[1753734691048,8.23605922,183.55,183.53,40.58]
[1753734691748,6.12786594,183.56,183.53,40.58]
[1753734691749,0.68,183.58,183.53,40.58]
[1753734691967,13.68350053,183.58,183.53,49.47605922]
[1753734692270,8.23605922,183.57,183.53,41.24]
[1753734692832,8.23605922,183.57,183.53,40.58]
[1753734693039,8.23605922,183.58,183.53,49.47605922]
[1753734693462,8.23605922,183.55,183.53,40.58]
[1753734693862,8.91605922,183.55,183.53,40.58]
[1753734694193,8.23605922,183.56,183.53,40.58]
[1753734694336,8.23605922,183.57,183.53,40.58]
[1753734694543,8.23605922,183.58,183.53,49.47605922]
[1753734695154,8.23605922,183.57,183.53,41.24]
[1753734695862,13.68342985,183.58,183.53,49.47605922]
[1753734696161,0.54543471,183.62,183.56,8.23605922]
[1753734696162,8.23605922,183.62,183.56,8.23605922]
[1753734696372,8.23605922,183.62,183.57,48.65605922]
[1753734696543,8.23605922,183.62,183.57,49.31605922]
[1753734696736,8.23605922,183.63,183.57,48.65605922]
[1753734696965,13.68157024,183.64,183.59,8.23605922]
[1753734697263,13.68127972,183.65,183.6,41.06]
[1753734697435,8.23605922,183.65,183.6,49.29605922]
[1753734697632,8.23605922,183.66,183.61,8.23605922]
[1753734697836,8.23605922,183.68,183.63,8.23605922]
[1753734698034,13.68036952,183.68,183.64,40.4]
[1753734698447,14.36036952,183.68,183.64,40.4]
[1753734698940,0.54543471,183.7,183.65,8.23605922]
[1753734698941,8.23605922,183.7,183.65,8.23605922]
[1753734699149,8.23605922,183.71,183.67,8.23605922]
[1753734699350,0.71,183.72,183.67,8.23605922]
[1753734699351,0.03,183.72,183.68,48.61605922]
[1753734699642,0.03,183.72,183.68,49.27605922]
[1753734699843,0.03,183.72,183.69,0.66]
[1753734700051,0.03,183.72,183.68,49.27605922]
[1753734700241,8.26605922,183.72,183.68,40.38]
[1753734700441,0.03,183.72,183.68,48.61605922]
[1753734701145,0.03,183.72,183.68,54.72028047]
[1753734701366,0.03,183.72,183.71,8.23605922]
[1753734701564,0.03,183.72,183.71,48.57605922]
[1753734702547,0.03,183.72,183.69,6.64834669]
[1753734702548,8.94605922,183.72,183.69,40.34]
[1753734702738,8.23605922,183.7,183.69,40.34]
[1753734702943,8.91605922,183.7,183.6,8.23605922]
[1753734703145,8.23605922,183.66,183.62,40.34]
[1753734703561,8.23605922,183.67,183.62,48.57605922]
[1753734703844,8.23605922,183.71,183.66,8.23605922]
[1753734704171,8.23605922,183.7,183.67,40.36]
[1753734704465,8.23605922,183.71,183.67,40.36]
[1753734704664,8.23605922,183.7,183.67,40.36]
[1753734704971,8.23605922,183.68,183.64,40.34]
[1753734705264,8.23605922,183.66,183.64,40.34]
[1753734705666,8.91605922,183.66,183.64,40.34]
[1753734705866,0.54543471,183.71,183.64,40.34]
[1753734706044,8.23605922,183.69,183.64,40.34]
[1753734706462,8.23605922,183.68,183.64,40.34]
[1753734708047,8.91605922,183.67,183.64,40.34]
[1753734708248,8.23605922,183.66,183.64,40.34]
[1753734708448,8.23605922,183.67,183.64,40.34]
[1753734709074,8.23605922,183.68,183.64,40.34]
[1753734709262,8.23605922,183.69,183.64,48.57605922]
[1753734709463,8.23605922,183.69,183.65,0.66]
[1753734709981,8.23605922,183.68,183.64,40.34]
[1753734710149,5.4440608,183.69,183.64,40.34]
[1753734710348,8.23605922,183.67,183.64,40.34]
[1753734710866,8.23605922,183.66,183.61,10.48245922]
[1753734711071,0.68,183.68,183.61,1.5864]
[1753734711072,8.23605922,183.64,183.61,1.5864]
[1753734711252,8.23605922,183.64,183.62,40.24]
[1753734714283,8.23605922,183.64,183.57,27.5864]
[1753734714284,8.91605922,183.63,183.6,40.18]
[1753734714464,8.23605922,183.61,183.6,40.18]
[1753734715370,6.12454728,183.67,183.6,40.18]
[1753734715758,8.23605922,183.63,183.6,40.18]
[1753734715955,13.68238567,183.61,183.6,40.18]
[1753734716149,18.38351425,183.61,183.56,40.18]
[1753734716355,8.23605922,183.57,183.56,40.18]
[1753734716956,5.44632645,183.61,183.56,40.18]
[1753734717152,8.23605922,183.57,183.56,40.18]
[1753734717380,8.23605922,183.57,183.53,0.06]
[1753734717568,8.23605922,183.57,183.54,40.18]
[1753734717569,8.23605922,183.56,183.54,40.18]
[1753734718591,13.68320684,183.59,183.54,40.84]
[1753734718783,8.23605922,183.58,183.54,40.18]
[1753734719377,8.23605922,183.59,183.55,0.66]
[1753734719583,0.54543471,183.63,183.55,0.66]
[1753734719584,8.23605922,183.61,183.56,8.89605922]
[1753734719782,4.02125878,183.6,183.57,40.16]
[1753734719962,12.257318,183.59,183.53,51.08074319]
[1753734720167,8.23605922,183.59,183.54,40.16]
[1753734720478,8.23605922,183.59,183.54,49.05605922]
[1753734720890,13.68306267,183.59,183.54,40.82]
[1753734721060,14.35306267,183.59,183.54,40.16]
[1753734721262,8.23605922,183.6,183.55,0.72]
[1753734721765,8.23605922,183.61,183.55,8.95605922]
[1753734722272,13.68290152,183.6,183.55,0.72]
[1753734722466,8.23605922,183.59,183.54,48.39605922]
[1753734722667,8.23605922,183.59,183.54,49.11605922]
[1753734723084,8.23605922,183.56,183.53,0.06]
[1753734723387,8.23605922,183.55,183.53,0.06]
[1753734723777,8.23605922,183.56,183.53,0.06]
[1753734723993,8.23605922,183.55,183.53,0.06]
[1753734724290,8.23605922,183.54,183.53,0.06]
[1753734724957,8.23605922,183.55,183.53,0.06]
[1753734726375,8.23605922,183.57,183.53,0.06]
[1753734726960,149.0,183.58,183.53,17.56468397]
[1753734727168,14.35262783,183.61,183.56,8.23605922]
[1753734727375,14.35262783,183.61,183.54,1.26484036]
[1753734727376,8.23605922,183.6,183.57,40.06]
[1753734727572,8.23605922,183.58,183.53,0.06]
[1753734727791,8.23605922,183.54,183.53,0.06]
[1753734728465,8.90605922,183.54,183.53,0.06]
[1753734728679,8.23605922,183.55,183.53,0.06]
[1753734728867,1.21543471,183.58,183.54,40.12]
[1753734728868,8.23605922,183.58,183.54,40.12]
[1753734729097,5.44725862,183.58,183.54,40.84]
[1753734729272,8.23605922,183.58,183.54,40.84]
[1753734729889,8.23605922,183.6,183.55,25.74074319]
[1753734730191,8.23605922,183.62,183.57,16.78468397]
[1753734730381,13.68217215,183.62,183.58,40.66472164]
[1753734730582,8.23605922,183.61,183.58,40.12]
[1753734730970,5.44575815,183.63,183.58,40.12]
[1753734731171,13.68153196,183.64,183.58,49.62078086]
[1753734731490,8.23605922,183.59,183.55,22.90078397]
[1753734731731,8.23605922,183.59,183.56,40.12]
[1753734732276,8.23605922,183.58,183.57,40.1]
[1753734732474,8.23605922,183.59,183.57,40.1]
[1753734732982,8.90605922,183.59,183.57,40.1]
[1753734733196,9.45149393,183.58,183.53,0.06]
[1753734733379,8.23605922,183.54,183.53,0.06]
[1753734734169,8.90605922,183.54,183.53,0.06]
[1753734734404,5.44870048,183.53,183.5,0.06]
[1753734734619,8.23605922,183.51,183.5,0.06]
[1753734735102,8.90605922,183.51,183.5,0.06]
[1753734735268,0.67,183.51,183.5,0.06]
[1753734735464,8.90605922,183.51,183.5,0.06]
[1753734736475,14.35535353,183.51,183.5,0.06]
[1753734736781,13.68535353,183.51,183.5,0.06]
[1753734737208,8.23605922,183.51,183.5,0.06]
[1753734737586,8.23605922,183.52,183.5,0.06]
[1753734738092,40.12,183.57,183.5,8.29605922]
[1753734738276,8.23605922,183.55,183.51,0.72]
[1753734738810,8.23605922,183.6,183.54,8.23605922]
[1753734739096,8.23605922,183.6,183.55,8.23605922]
[1753734739293,13.68271676,183.6,183.55,8.23605922]
[1753734739497,13.68271676,183.6,183.55,8.95605922]
[1753734739881,8.90605922,183.59,183.54,40.12]
[1753734740104,8.23605922,183.56,183.54,40.12]
[1753734740405,8.90605922,183.55,183.5,40.16]
[1753734740602,6.11816642,183.55,183.5,40.16]
[1753734740815,5.44816642,183.55,183.5,40.16]
[1753734740986,0.54543471,183.58,183.51,17.50468397]
[1753734741306,8.23605922,183.58,183.53,25.02074319]
[1753734741616,8.23605922,183.54,183.5,40.26]
[1753734741976,8.23605922,183.55,183.5,40.26]
[1753734742176,8.90605922,183.55,183.5,40.26]
[1753734742590,0.54543471,183.62,183.5,40.26]
[1753734742591,13.6840692,183.56,183.5,48.49605922]
[1753734742775,5.44800998,183.56,183.51,8.23605922]
[1753734742977,8.90605922,183.55,183.5,40.24]
[1753734743188,8.90605922,183.54,183.5,40.24]
[1753734743394,8.23605922,183.52,183.5,40.24]
[1753734743694,8.90605922,183.52,183.5,40.24]
[1753734744003,8.23605922,183.53,183.5,40.24]
[1753734744299,8.23605922,183.54,183.5,40.24]
[1753734744506,13.6840692,183.56,183.5,49.19605922]
[1753734744810,8.23605922,183.56,183.51,8.95605922]
[1753734745001,13.68364945,183.57,183.52,8.95605922]
[1753734745172,13.68364945,183.57,183.51,8.23605922]
[1753734745374,13.68350153,183.58,183.52,8.23605922]
[1753734745703,13.68350153,183.58,183.53,8.23605922]
[1753734745871,8.23605922,183.57,183.52,8.23605922]
[1753734746075,8.23605922,183.57,183.5,40.24]
[1753734746076,8.90605922,183.56,183.5,48.47605922]
[1753734746308,0.03,183.55,183.5,48.47605922]
[1753734746513,0.03,183.55,183.5,8.29605922]
[1753734746808,8.23605922,183.53,183.5,40.2]
[1753734747112,8.90605922,183.53,183.5,40.2]
[1753734747518,8.90605922,183.53,183.5,0.06]
[1753734748314,13.68446283,183.54,183.5,0.06]
[1753734748608,8.23605922,183.53,183.5,0.06]
[1753734748785,13.68495113,183.53,183.5,0.06]
[1753734748977,5.44889191,183.53,183.5,0.06]
[1753734749177,13.68495113,183.53,183.5,0.06]
[1753734749612,8.26605922,183.55,183.5,8.29605922]
[1753734749773,0.03,183.55,183.52,8.23605922]
[1753734749975,0.03,183.55,183.53,8.23605922]
[1753734750180,0.03,183.55,183.52,48.33605922]
[1753734750374,0.03,183.55,183.52,49.05605922]
[1753734751014,0.03,183.55,183.54,8.23605922]
[1753734753507,0.03,183.55,183.54,39.54746994]
[1753734753681,0.03,183.57,183.56,42.78468397]
[1753734753881,0.03,183.57,183.56,91.62552418]
[1753734754227,0.03,183.57,183.56,92.29552418]
[1753734754989,0.03,183.57,183.56,97.74333416]
[1753734756417,4.03114991,183.65,183.6,43.06900711]
[1753734756617,0.03,183.72,183.65,16.78468397]
[1753734756782,4.03297604,183.71,183.69,8.23605922]
[1753734756983,0.69,183.7,183.66,0.54448437]
[1753734757189,8.23605922,183.69,183.65,40.06]
[1753734757397,0.69,183.69,183.65,48.29605922]
[1753734758409,0.03,183.72,183.68,8.23605922]
[1753734758410,0.72,183.72,183.68,8.23605922]
[1753734758605,0.72,183.72,183.69,40.08]
[1753734759108,0.69,183.71,183.67,8.23605922]
[1753734759288,0.69,183.7,183.68,40.08]
[1753734759482,13.70920015,183.72,183.68,40.08]
[1753734759680,0.72,183.72,183.68,48.31605922]
[1753734759881,0.03,183.72,183.68,48.31605922]
[1753734760089,4.05882726,183.72,183.68,48.31605922]
[1753734760692,0.72,183.72,183.68,40.08]
[1753734761281,8.23605922,183.7,183.64,17.32922764]
[1753734761606,8.23605922,183.68,183.65,40.04]
[1753734761808,8.92605922,183.67,183.65,40.04]
[1753734762102,0.69,183.66,183.65,40.04]
[1753734762497,8.23605922,183.67,183.65,40.04]
[1753734763113,8.23605922,183.7,183.65,40.04]
[1753734763284,0.03,183.72,183.69,8.23605922]
[1753734763487,0.03,183.72,183.7,40.02]
[1753734763991,0.03,183.72,183.71,25.56507937]
[1753734764330,0.03,183.72,183.71,26.23507937]
[1753734765293,0.03,183.72,183.71,31.67844119]
[1753734765819,0.03,183.72,183.71,25.70724094]
[1753734766004,0.03,183.72,183.71,26.37724094]
[1753734766212,0.72,183.72,183.71,40.0]
[1753734766729,0.03,183.72,183.71,48.23605922]
[1753734767316,0.03,183.72,183.71,40.0]
[1753734767888,0.03,183.72,183.71,48.23605922]
[1753734769022,0.03,183.72,183.71,65.02074319]
[1753734769202,0.03,183.72,183.71,65.56507937]
[1753734769394,0.03,183.72,183.71,65.02074319]
[1753734770110,0.03,183.72,183.71,71.41842815]
[1753734770292,0.03,183.72,183.71,71.96276433]
[1753734771420,0.03,183.72,183.71,65.78940251]
[1753734771930,0.03,183.72,183.71,71.23276433]
[1753734775205,0.03,183.72,183.71,71.90276433]
[1753734775512,0.03,183.72,183.71,56.64468397]
[1753734776498,0.72,183.72,183.71,39.86]
[1753734776926,0.03,183.72,183.71,39.86]
[1753734777619,0.03,183.72,183.71,64.88074319]